bitfinex-derivatives/quotes_ETHF0:USTF0_20260128
["timestamp","ask_amount","ask_price","bid_price","bid_amount"]
[1769569840614,0.29684637,3009.2,3007.8,0.16647]
[1769569841804,0.00423255,3009.2,3007.6,1.86000174]
[1769569842004,0.00423255,3009.2,3007.8,0.16647]
[1769569842399,0.29527023,3009.2,3007.8,0.16647]
[1769569843018,0.00423255,3009.2,3007.9,0.16646]
[1769569843628,0.00423255,3009.2,3007.6,5.18900174]
[1769569843810,0.00423255,3009.2,3008.2,0.16645]
[1769569844819,0.29461845,3009.2,3008.2,0.16645]
[1769569845919,0.29461845,3009.2,3007.6,2.02648174]
[1769569846118,0.29461845,3009.2,3007.8,0.16647]
[1769569846319,0.29461845,3009.2,3007.9,0.16646]
[1769569849120,0.00423255,3009.2,3008.0,0.16646]
[1769569849319,0.00423255,3009.2,3008.0,2.02646174]
[1769569850220,0.00423255,3009.2,3008.1,0.16645]
[1769569850415,0.28979888,3009.5,3008.3,0.16644]
[1769569850721,0.16636,3009.9,3008.4,0.16644]
[1769569850912,0.28963734,3009.7,3008.4,0.16644]
[1769569851424,0.29294851,3009.7,3008.4,0.16644]
[1769569860322,0.29499422,3008.9,3007.2,7.3085455]
[1769569860629,0.29499422,3008.9,3007.1,2.786]
[1769569861632,0.29499422,3008.9,3007.4,0.16649]
[1769569862127,0.29499422,3008.9,3007.6,2.02648174]
[1769569863530,0.29499422,3008.9,3007.6,0.16648]
[1769569863725,0.2906346,3009.5,3007.1,2.786]
[1769569863927,0.2906346,3009.3,3007.1,2.786]
[1769569864229,0.2906346,3009.3,3008.1,0.16645]
[1769569865022,0.2906346,3009.3,3008.1,2.11845]
[1769569866326,0.2906346,3009.3,3008.3,0.16644]
[1769569867235,3.67743149,3009.2,3008.3,0.16644]
[1769569867534,0.28956464,3009.5,3008.3,0.16644]
[1769569867734,3.67844045,3009.4,3008.3,0.16644]
[1769569868034,3.67844045,3009.3,3008.3,0.16644]
[1769569868223,3.67844045,3009.2,3008.3,0.16644]
[1769569868425,0.28956464,3009.5,3008.3,0.16644]
[1769569868635,3.67920608,3009.4,3008.3,0.16644]
[1769569868934,3.67920608,3009.3,3008.3,0.16644]
[1769569869130,3.67920608,3009.2,3008.3,0.16644]
[1769569869331,0.2868863,3009.4,3008.3,0.16644]
[1769569869535,3.6797713,3009.3,3008.3,0.16644]
[1769569869730,3.6797713,3009.2,3008.3,0.16644]
[1769569869936,0.2868863,3009.4,3008.3,0.16644]
[1769569870142,3.67972441,3009.3,3008.3,0.16644]
[1769569870330,3.67972441,3009.2,3008.3,0.16644]
[1769569870635,0.2868863,3009.4,3008.3,0.16644]
[1769569870836,0.00331117,3009.7,3008.3,0.16644]
[1769569870837,0.28447126,3009.2,3008.3,0.16644]
[1769569871339,3.96454869,3009.1,3008.3,0.16644]
[1769569871533,0.28447126,3009.1,3008.3,0.16644]
[1769569877861,0.28447126,3009.1,3007.3,7.3085455]
[1769569877862,0.24489228,3008.9,3007.3,7.3085455]
[1769569878150,0.24489228,3008.9,3006.4,9.96316442]
[1769569878151,0.16647,3007.8,3006.4,0.00349169]
[1769569878351,0.16649,3007.5,3006.4,0.00349169]
[1769569878555,0.05505006,3007.3,3006.4,0.00349169]
[1769569878953,0.05505006,3007.3,3006.4,0.26565563]
[1769569880061,0.05505006,3007.3,3006.4,0.00349169]
[1769569880354,0.05505006,3007.3,3005.8,0.29429133]
[1769569881255,0.05505006,3007.3,3005.8,0.29681936]
[1769569884458,0.05505006,3007.3,3004.9,0.2640992]
[1769569884459,7.04456117,3007.2,3004.9,0.2640992]
[1769569884759,3.96337791,3007.0,3004.9,0.2640992]
[1769569884965,3.96337791,3006.8,3004.9,0.2640992]
[1769569885153,3.96337791,3006.4,3004.8,1.26e-06]
[1769569885354,6.57612117,3006.3,3004.9,0.2640992]
[1769569885554,0.17312673,3006.3,3004.9,0.26785908]
[1769569885754,0.00656673,3006.2,3004.9,0.26785908]
[1769569886055,0.00656673,3005.6,3004.9,0.00375988]
[1769569886557,0.00656673,3005.6,3004.8,1.26e-06]
[1769569887063,0.16659,3005.7,3004.8,1.26e-06]
[1769569887064,0.00464845,3005.9,3004.8,0.26649396]
[1769569887661,0.00464845,3005.9,3004.0,0.2664927]
[1769569887862,0.1666,3005.5,3004.0,0.2664927]
[1769569888164,44.76337791,3006.7,3004.0,0.2664927]
[1769569888362,9.72985982,3006.6,3004.0,0.2664927]
[1769569888560,3.69385982,3006.5,3004.0,0.27068482]
[1769569888760,3.69385982,3006.4,3004.0,0.27068482]
[1769569888961,3.69385982,3006.3,3004.0,0.27068482]
[1769569889157,3.69385982,3006.2,3004.0,0.27068482]
[1769569889464,0.16657,3006.1,3004.0,0.27068482]
[1769569889664,5.44957,3006.1,3004.0,0.27068482]
[1769569890963,0.16657,3006.1,3004.0,0.27068482]
[1769569893863,0.16657,3006.1,3004.0,0.43736482]
[1769569894167,0.16657,3006.1,3004.1,0.26729412]
[1769569895470,1.953,3006.4,3004.2,0.434015]
[1769569895763,1.953,3006.4,3004.3,0.26678584]
[1769569896369,40.8,3006.7,3004.3,0.26678584]
[1769569896570,2.7,3006.6,3004.4,0.26683842]
[1769569896770,2.9619561,3006.8,3004.7,0.26683842]
[1769569897372,2.9619561,3006.8,3004.8,0.26683842]
[1769569897567,2.7954261,3006.8,3005.0,0.269543]
[1769569898166,2.7954261,3006.8,3005.0,0.436163]
[1769569898370,2.7954261,3006.8,3005.1,0.269543]
[1769569899377,2.9619261,3007.3,3005.2,0.26958632]
[1769569899771,0.00273927,3007.5,3005.7,0.27048468]
[1769569899972,2.7954261,3007.4,3005.7,0.27048468]
[1769569900767,0.00273927,3007.5,3005.7,0.43706468]
[1769569900974,0.00273927,3007.5,3005.8,0.27052484]
[1769569901662,0.00273927,3007.5,3006.0,0.27070524]
[1769569901864,0.00273927,3007.5,3006.1,0.27070524]
[1769569902677,0.00273927,3007.5,3006.2,0.27074466]
[1769569902872,0.00273927,3007.5,3006.4,0.27074466]
[1769569903879,0.00273927,3007.5,3006.4,0.43729466]
[1769569904178,0.00273927,3007.5,3006.5,0.27096593]
[1769569911081,0.2271883,3007.2,3006.2,0.0043101]
[1769569913185,0.2271883,3007.2,3006.2,0.24538537]
[1769569914787,0.23385772,3007.5,3006.2,0.24538537]
[1769569920389,0.21847788,3007.3,3006.2,0.24538537]
[1769569920986,0.21676179,3007.2,3006.2,0.0043101]
[1769569921186,0.38326179,3007.2,3006.2,0.0043101]
[1769569921493,0.21676179,3007.0,3006.2,0.0043101]
[1769569921794,0.21676179,3007.0,3005.9,0.23876442]
[1769569922293,0.21482533,3006.2,3005.0,0.23876442]
[1769569922687,0.21482533,3006.2,3005.0,0.2427244]
[1769569922890,0.21321221,3006.0,3005.0,0.2427244]
[1769569923499,3.72151509,3005.9,3005.0,0.2427244]
[1769569923791,0.21281393,3005.9,3005.0,0.2427244]
[1769569924394,0.21281393,3006.4,3005.0,0.2427244]
[1769569924593,3.93406641,3006.3,3005.0,0.2427244]
[1769569924888,3.72294924,3006.2,3005.0,0.2427244]
[1769569925091,0.21111717,3006.6,3005.1,0.23876442]
[1769569925292,3.72604689,3006.5,3005.1,0.23876442]
[1769569925490,0.21111717,3006.6,3005.1,0.23876442]
[1769569925691,0.20184243,3006.4,3005.1,0.23876442]
[1769569925890,3.72617194,3006.3,3005.1,0.23876442]
[1769569926096,7.12717644,3006.8,3005.1,0.23876442]
[1769569926289,7.69152105,3006.7,3005.1,0.23876442]
[1769569926492,3.72814314,3006.6,3005.1,0.23876442]
[1769569926696,3.72814314,3006.5,3005.2,0.23876442]
[1769569926887,3.72814314,3006.4,3005.2,0.23876442]
[1769569927089,0.36671258,3006.8,3005.2,0.23876442]
[1769569927395,0.20018258,3006.6,3005.2,0.23876442]
[1769569927589,0.20018258,3006.4,3005.2,0.23876442]
[1769569928198,0.3684131,3006.1,3005.0,0.00395998]
[1769569928497,0.2018431,3005.9,3005.0,0.00395998]
[1769569928692,0.2018431,3005.9,3005.0,0.2427244]
[1769569931497,0.18284207,3005.1,3003.2,0.40548442]
[1769569931697,0.18284207,3005.1,3003.3,0.23876442]
[1769569931997,0.18284207,3004.9,3003.3,0.23876442]
[1769569932698,0.18690207,3004.9,3003.3,0.24136952]
[1769569932893,0.00406,3004.9,3003.4,0.23876442]
[1769569933494,0.00406,3004.9,3003.6,0.23876442]
[1769569934596,0.00406,3004.9,3003.8,0.23876442]
[1769569940803,0.00406,3004.9,3003.9,0.23876442]
[1769569941001,0.33165588,3006.2,3004.3,0.23876442]
[1769569941207,0.16509588,3006.1,3004.3,0.23876442]
[1769569942101,0.16829114,3006.1,3004.3,0.23876442]
[1769569942500,2.7954261,3005.8,3004.5,0.23876442]
[1769569943500,0.00319526,3006.1,3004.6,0.40540442]
[1769569943809,0.00319526,3006.1,3004.7,0.23876442]
[1769569943810,0.16526023,3006.1,3004.7,0.23876442]
[1769569944706,2.7954261,3005.8,3004.7,0.23876442]
[1769569944907,0.16060822,3005.7,3004.7,0.23876442]
[1769569945707,0.16060822,3005.7,3004.0,0.16668]
[1769569947805,0.16060822,3005.7,3004.1,0.20607571]
[1769569948006,3.01123964,3005.3,3004.1,0.20607571]
[1769569949707,0.21581354,3005.6,3004.1,0.20607571]
[1769569951617,3.72360723,3005.5,3004.1,0.20607571]
[1769569951816,0.21581354,3005.6,3004.1,0.20607571]
[1769569952015,3.72371827,3005.5,3004.1,0.20607571]
[1769569952314,0.21581354,3005.6,3004.1,0.20607571]
[1769569952520,3.72540294,3005.5,3004.1,0.37275571]
[1769569952717,0.21581354,3005.6,3004.2,0.20607571]
[1769569952922,3.72540278,3005.5,3004.2,0.20607571]
[1769569953218,0.21581354,3005.6,3004.2,0.20607571]
[1769569953514,3.72573962,3005.5,3004.2,0.20607571]
[1769569953717,0.21581354,3005.6,3004.2,0.20607571]
[1769569953917,3.72608188,3005.5,3004.2,0.20607571]
[1769569954114,0.21581354,3005.6,3004.2,0.20607571]
[1769569954314,3.72626995,3005.5,3004.2,0.20607571]
[1769569954515,0.21581354,3005.6,3004.2,0.20607571]
[1769569954717,3.72627618,3005.5,3004.4,0.20607571]
[1769569954919,0.21581354,3006.2,3004.6,0.20607571]
[1769569955109,3.72688879,3006.0,3004.6,0.20607571]
[1769569955407,3.72688879,3005.9,3004.6,0.20607571]
[1769569955713,0.2190088,3006.1,3004.7,0.20607571]
[1769569955916,3.72778584,3006.0,3005.1,0.20607571]
[1769569956108,0.00319526,3006.1,3005.1,0.20607571]
[1769569957516,0.2190088,3006.1,3005.1,0.20607571]
[1769569960021,0.00319526,3006.1,3005.1,0.20607571]
[1769569960616,0.2190088,3006.1,3005.1,0.20607571]
[1769569962217,0.00319526,3006.1,3005.1,0.20607571]
[1769569963721,0.21581354,3006.0,3004.9,0.37270571]
[1769569963910,0.21581354,3006.0,3005.0,0.20607571]
[1769569964107,0.21581354,3006.0,3004.4,1.954]
[1769569964307,0.21581354,3006.0,3004.7,0.20607571]
[1769569966621,0.21581354,3006.0,3004.4,2.16007571]
[1769569966821,0.21581354,3005.8,3004.4,2.16007571]
[1769569967022,0.21581354,3005.6,3004.4,2.16007571]
[1769569967215,0.16658,3005.9,3003.8,0.20607571]
[1769569967216,0.21581354,3005.4,3003.8,0.20607571]
[1769569967418,0.21581354,3005.2,3003.8,0.20607571]
[1769569969212,0.21581354,3005.5,3003.9,0.37276571]
[1769569969416,0.21581354,3005.5,3003.6,1.954]
[1769569969417,3.73438739,3005.4,3004.0,0.37275571]
[1769569969619,3.73438739,3005.3,3004.1,0.20607571]
[1769569969917,0.38240354,3005.7,3004.1,0.20607571]
[1769569970118,3.73445127,3005.6,3004.1,0.20607571]
[1769569970322,3.73445127,3005.5,3004.1,0.20607571]
[1769569970513,3.73445127,3005.4,3004.1,0.20607571]
[1769569970714,3.73445127,3005.3,3004.1,0.20607571]
[1769569970912,3.96337791,3005.9,3004.4,0.37273571]
[1769569971119,3.73581211,3005.8,3004.5,0.20607571]
[1769569971318,3.73581211,3005.7,3004.5,0.20607571]
[1769569971520,0.21581354,3006.0,3004.5,0.20607571]
[1769569971725,3.73590831,3005.9,3004.5,0.20607571]
[1769569971923,3.73590831,3005.8,3004.5,0.20607571]
[1769569972126,3.73590831,3005.7,3004.5,0.20607571]
[1769569972422,3.73590831,3005.6,3004.5,0.20607571]
[1769569972622,3.96657317,3006.1,3004.7,0.20607571]
[1769569972827,3.73611575,3006.0,3004.7,0.20607571]
[1769569973017,3.73611575,3005.9,3004.7,0.20607571]
[1769569973321,0.00319526,3006.1,3004.7,0.20607571]
[1769569973322,3.73611575,3005.8,3004.7,0.20607571]
[1769569973521,3.73611575,3005.7,3004.7,0.20607571]
[1769569973724,0.2190088,3006.1,3004.7,0.20607571]
[1769569973920,0.2190088,3006.1,3003.6,8.409]
[1769569973921,0.21581354,3005.9,3004.2,0.20607571]
[1769569974228,0.21581354,3005.6,3004.2,0.20607571]
[1769569974420,0.21581354,3005.4,3004.2,0.20607571]
[1769569974620,0.19565103,3005.2,3004.2,0.20607571]
[1769569974822,3.73623661,3005.1,3004.2,0.20607571]
[1769569975126,0.19565103,3005.2,3004.3,2.683]
[1769569975320,3.73438135,3005.1,3004.3,2.683]
[1769569975527,0.19565103,3005.2,3004.3,2.683]
[1769569975727,3.73438151,3005.1,3004.3,2.683]
[1769569976024,0.19565103,3005.2,3004.3,1.968]
[1769569976226,3.73431742,3005.1,3004.3,2.1534785]
[1769569976430,0.19565103,3005.5,3004.4,0.1854785]
[1769569976727,3.7339423,3005.4,3004.4,0.1854785]
[1769569976927,3.7339423,3005.3,3004.4,0.1854785]
[1769569977114,0.19565103,3005.4,3004.4,0.1854785]
[1769569982033,0.19565103,3006.0,3004.4,0.1854785]
[1769569982333,0.19565103,3005.8,3004.4,0.1854785]
[1769569982545,0.16976526,3006.1,3004.4,0.3521385]
[1769569982546,3.7344365,3005.7,3004.4,0.3521385]
[1769569982744,0.19884629,3006.1,3004.6,0.1854785]
[1769569984144,0.19884629,3006.1,3004.7,0.1854785]
[1769569987252,3.73636792,3006.0,3004.7,0.1854785]
[1769569987550,0.19884629,3006.1,3004.7,0.1854785]
[1769569987751,3.73644319,3006.0,3004.7,0.1854785]
[1769569987947,0.19884629,3006.1,3004.7,0.1854785]
[1769569988147,3.73644383,3006.0,3004.7,0.1854785]
[1769569988348,0.19884629,3006.1,3004.7,0.1854785]
[1769569988541,3.73657128,3006.0,3004.7,0.1854785]
[1769569988745,0.19884629,3006.1,3004.7,0.1854785]
[1769569988951,3.73657177,3006.0,3004.7,0.1854785]
[1769569989152,0.19884629,3006.1,3004.7,0.1854785]
[1769569989349,3.7366511,3006.0,3004.7,0.1854785]
[1769569989650,0.19884629,3006.1,3004.8,0.1854785]
[1769569989852,3.73670172,3006.0,3004.8,0.1854785]
[1769569990053,0.19884629,3006.1,3004.8,0.1854785]
[1769569990354,3.73673008,3006.0,3004.8,0.1854785]
[1769569990649,0.19884629,3006.1,3004.8,0.1854785]
[1769569990842,3.73688505,3006.0,3005.0,0.1854785]
[1769569991044,0.19884629,3006.1,3005.0,0.1854785]
[1769569991244,3.93253625,3006.0,3005.0,0.1854785]
[1769569991447,0.19565103,3006.0,3005.0,0.1854785]
[1769569994354,0.19565103,3006.0,3005.0,1.954]
[1769569996356,0.19565103,3006.0,3004.8,0.1854785]
[1769569996555,0.19565103,3006.0,3005.0,1.954]
[1769569997052,0.19565103,3006.0,3005.0,2.1394785]
[1769569999855,0.19565103,3006.0,3005.1,0.1854785]
[1769570000057,0.19565103,3005.8,3004.9,1.954]
[1769570000651,0.19565103,3005.8,3004.9,2.1394785]
[1769570001150,0.19565103,3005.6,3004.8,3.331]
[1769570001354,3.73421412,3005.7,3004.2,2.1394785]
[1769570001355,0.16854565,3005.4,3004.2,2.1394785]
[1769570001558,0.16727494,3005.1,3004.2,2.1394785]
[1769570003455,0.16727494,3005.1,3004.3,6.003]
[1769570004060,0.16727494,3005.1,3004.3,6.1884785]
[1769570006761,0.16727494,3005.1,3004.4,0.20085805]
[1769570007462,0.16727494,3005.1,3004.4,3.53285805]
[1769570007866,0.16727494,3005.1,3004.5,1.954]
[1769570009366,0.20041414,3005.5,3004.5,2.15485805]
[1769570009567,3.71638229,3005.4,3004.5,2.15485805]
[1769570009758,3.71638229,3005.3,3004.5,2.15485805]
[1769570009961,3.71638229,3005.2,3004.5,2.15485805]
[1769570010264,0.20041414,3005.5,3004.5,2.15485805]
[1769570010566,3.71616162,3005.4,3004.6,0.20085805]
[1769570010867,0.20041414,3006.0,3004.6,0.20085805]
[1769570011162,3.71714112,3005.9,3004.6,0.20085805]
[1769570011363,3.71714112,3005.8,3004.6,0.20085805]
[1769570011560,0.20041414,3006.0,3004.6,0.20085805]
[1769570011764,3.7172153,3005.9,3004.6,0.20085805]
[1769570012062,3.7172153,3005.8,3004.6,0.20085805]
[1769570012262,0.00319526,3006.1,3004.6,0.20085805]
[1769570012564,3.71736106,3006.0,3004.6,0.20085805]
[1769570012765,3.71736106,3005.9,3004.6,0.20085805]
[1769570012965,3.71736106,3005.8,3004.6,0.20085805]
[1769570013267,0.00319526,3006.1,3004.6,0.20085805]
[1769570013568,3.71747413,3006.0,3004.6,0.20085805]
[1769570013772,3.71747413,3005.9,3004.6,0.20085805]
[1769570013967,3.71747413,3005.8,3004.6,0.20085805]
[1769570014168,0.2036094,3006.1,3004.6,0.20085805]
[1769570014370,3.7174769,3006.0,3004.6,0.20085805]
[1769570014672,3.7174769,3005.9,3004.6,0.20085805]
[1769570014867,3.7174769,3005.8,3004.6,2.0659149]
[1769570015072,0.20041414,3006.7,3005.1,0.20085805]
[1769570015973,0.20323229,3006.7,3005.1,0.20085805]
[1769570016472,0.20041414,3006.3,3005.2,5.48685805]
[1769570016969,0.20041414,3006.3,3005.3,0.20085805]
[1769570017567,0.20041414,3006.3,3005.4,5.286]
[1769570019667,0.20041414,3006.1,3005.5,1.954]
[1769570019861,0.20041414,3006.1,3005.5,1.95709704]
[1769570024373,2.06390661,3006.0,3005.5,0.00309704]
[1769570024577,2.06390661,3006.0,3005.5,1.95709704]
[1769570024770,1.86349247,3006.2,3005.5,2.15795509]
[1769570024970,2.06390661,3006.2,3005.5,2.15795509]
[1769570025670,0.20041414,3006.1,3005.5,1.95709704]
[1769570027079,0.20041414,3006.1,3005.5,0.00309704]
[1769570027279,0.20041414,3005.9,3005.5,1.95709704]
[1769570027777,2.06390661,3006.0,3005.5,1.95709704]
[1769570028680,1.86349247,3006.0,3005.5,2.15795509]
[1769570028872,0.20041414,3006.1,3005.5,0.00309704]
[1769570029379,1.86349247,3006.4,3005.5,0.20395509]
[1769570029774,0.20041414,3005.9,3005.5,0.00309704]
[1769570030079,0.20041414,3005.7,3005.3,1.954]
[1769570030480,1.86349247,3005.8,3005.3,1.954]
[1769570030683,2.06390661,3005.8,3005.3,1.954]
[1769570031185,2.06390661,3006.0,3005.3,2.15485805]
[1769570031586,1.86349247,3006.0,3005.4,0.20085805]
[1769570034688,0.18859445,3006.1,3005.4,0.20085805]
[1769570035789,0.18859445,3006.1,3005.3,0.00299176]
[1769570037491,0.18859445,3005.3,3004.3,0.17988028]
[1769570037683,0.18859445,3005.0,3004.3,0.17988028]
[1769570038690,0.18859445,3005.0,3004.3,0.18285314]
[1769570041084,0.18859445,3005.6,3004.5,0.17988028]
[1769570041283,0.18859445,3005.6,3004.7,0.17988028]
[1769570042796,1.86349247,3005.9,3004.7,0.17988028]
[1769570042989,3.8804399,3005.8,3004.9,0.17988028]
[1769570043190,0.18859445,3006.1,3004.9,0.17988028]
[1769570043392,3.69208194,3006.0,3004.9,0.17988028]
[1769570043592,0.18859445,3006.1,3004.9,0.17988028]
[1769570043789,0.18859445,3005.6,3004.6,0.17988028]
[1769570043993,0.18859445,3005.4,3004.6,2.33388028]
[1769570045600,0.18859445,3005.4,3004.6,0.17988028]
[1769570045901,0.18859445,3005.4,3004.7,2.688]
[1769570048302,2.05208692,3005.7,3004.7,2.86788028]
[1769570048795,2.05208692,3005.7,3004.8,0.17988028]
[1769570049204,0.18859445,3005.6,3004.8,0.17988028]
[1769570050198,2.05208692,3005.9,3004.8,0.17988028]
[1769570050502,0.18859445,3005.9,3005.0,0.17988028]
[1769570051298,0.18859445,3006.4,3005.0,0.17988028]
[1769570051603,0.18859445,3006.4,3004.9,2.03012247]
[1769570051604,3.88113695,3006.3,3005.5,0.17988028]
[1769570051798,0.18859445,3006.3,3005.5,0.17988028]
[1769570057306,3.69399587,3006.2,3005.5,0.17988028]
[1769570057506,3.69399587,3006.1,3005.5,0.17988028]
[1769570057808,0.18859445,3006.2,3005.5,0.17988028]
[1769570058007,3.69416848,3006.1,3005.5,0.17988028]
[1769570058309,0.18859445,3006.2,3005.5,0.17988028]
[1769570058506,3.69434375,3006.1,3005.5,0.17988028]
[1769570058707,0.18859445,3006.2,3005.5,0.17988028]
[1769570058905,3.88294714,3006.1,3005.5,0.17988028]
[1769570059105,0.18859445,3006.1,3005.5,0.17988028]
[1769570060404,0.18859445,3006.1,3005.2,0.17988028]
[1769570060606,1.86349247,3006.0,3005.2,0.17988028]
[1769570060812,0.18859445,3005.9,3005.2,2.13388028]
[1769570061004,0.18859445,3005.7,3004.7,3.51088028]
[1769570061210,0.18859445,3005.7,3004.8,2.684]
[1769570061608,0.18859445,3005.7,3004.8,2.86388028]
[1769570064212,0.18859445,3005.7,3004.9,0.17988028]
[1769570065214,2.03913773,3006.0,3004.9,0.17988028]
[1769570065413,3.69586633,3005.9,3005.1,0.17011755]
[1769570065713,3.69586633,3005.8,3005.1,0.17011755]
[1769570065908,0.17564526,3006.0,3005.1,0.17011755]
[1769570066108,3.69597715,3005.9,3005.1,0.17011755]
[1769570066308,3.69597715,3005.8,3005.1,0.17011755]
[1769570066506,0.17564526,3006.0,3005.1,0.17011755]
[1769570066706,3.69605225,3005.9,3005.1,0.17011755]
[1769570066906,3.69605225,3005.8,3005.1,0.17011755]
[1769570067106,0.17564526,3006.0,3005.1,0.17011755]
[1769570068304,0.17564526,3006.4,3005.3,0.17011755]
[1769570068516,3.69668644,3006.3,3005.3,0.17011755]
[1769570068703,3.69668644,3006.2,3005.3,0.17011755]
[1769570068908,0.17564526,3006.3,3005.3,0.17011755]
[1769570069103,3.69676018,3006.2,3005.3,0.17011755]
[1769570069307,0.17564526,3006.3,3005.3,0.17011755]
[1769570069512,3.69726505,3006.2,3005.3,0.17011755]
[1769570069715,0.17564526,3006.3,3005.3,0.17011755]
[1769570069916,3.69725399,3006.2,3005.3,0.17011755]
[1769570070113,0.17564526,3006.3,3005.3,0.17011755]
[1769570070313,3.87291157,3006.2,3005.3,0.17011755]
[1769570070516,0.17564526,3006.2,3005.3,0.17011755]
[1769570070711,2.03913773,3006.2,3005.0,1.86349247]
[1769570070916,0.17564526,3005.9,3005.1,2.254]
[1769570071219,0.17564526,3005.7,3005.0,0.17011755]
[1769570071410,0.17564526,3005.7,3004.9,2.278]
[1769570071610,0.17564526,3005.7,3004.7,3.50111755]
[1769570071611,0.17564526,3005.7,3004.7,0.17011755]
[1769570071812,0.17564526,3005.7,3004.8,2.85311755]
[1769570072314,0.17564526,3005.7,3004.9,0.17011755]
[1769570080820,0.17564526,3005.7,3004.9,2.60711755]
[1769570081722,0.17564526,3005.7,3005.0,0.17011755]
[1769570084226,0.17564526,3005.9,3005.0,0.17011755]
[1769570088430,3.87703879,3005.8,3005.0,0.17011755]
[1769570088632,0.17564526,3005.8,3005.0,0.17011755]
[1769570095133,4.12616592,3006.3,3005.0,0.17011755]
[1769570095331,0.1553748,3006.1,3005.0,0.17011755]
[1769570095531,0.1553748,3005.9,3005.0,0.17011755]
[1769570095733,3.70202604,3005.8,3005.0,0.17011755]
[1769570097233,0.1553748,3005.7,3005.0,0.17011755]
[1769570101035,0.07552002,3005.7,3005.0,0.17011755]
[1769570101538,3.70276769,3005.6,3005.0,0.17011755]
[1769570101739,0.07552002,3005.7,3005.0,0.17011755]
[1769570101940,3.70318965,3005.6,3005.0,0.17011755]
[1769570102130,3.95960592,3006.2,3005.0,0.17011755]
[1769570102432,7.66303452,3006.2,3005.0,0.17011755]
[1769570102639,3.7034286,3006.1,3005.0,0.17011755]
[1769570102937,3.7034286,3006.0,3005.0,0.17011755]
[1769570103135,3.8588034,3005.9,3005.0,0.17011755]
[1769570103336,3.7034286,3005.8,3005.0,0.17011755]
[1769570103632,0.1553748,3005.9,3005.0,0.17011755]
[1769570103633,3.7034286,3005.7,3005.0,0.17011755]
[1769570103834,0.1553748,3005.9,3005.0,0.17011755]
[1769570104036,3.85878972,3005.8,3005.0,0.17011755]
[1769570104228,3.70341492,3005.7,3005.0,0.17011755]
[1769570104428,0.1553748,3005.8,3005.0,0.17011755]
[1769570104630,3.70341818,3005.7,3005.0,0.17011755]
[1769570104834,3.70340856,3005.6,3005.0,0.17011755]
[1769570105033,0.1553748,3005.8,3005.0,0.17011755]
[1769570105235,3.70341922,3005.7,3005.0,0.17011755]
[1769570105436,3.70341922,3005.6,3005.0,0.17011755]
[1769570105634,0.1553748,3005.8,3005.0,0.17011755]
[1769570105836,3.70342149,3005.7,3005.0,0.17011755]
[1769570106034,3.70342149,3005.6,3005.0,0.17011755]
[1769570106235,0.1553748,3005.8,3005.0,0.17011755]
[1769570106428,3.85885263,3005.7,3005.0,0.17011755]
[1769570106641,3.70347783,3005.6,3005.0,0.17011755]
[1769570107633,0.1553748,3005.7,3005.0,0.17011755]
[1769570108544,0.1553748,3006.2,3005.0,0.17011755]
[1769570108736,0.1553748,3006.0,3005.0,0.17011755]
[1769570108940,3.70556268,3005.9,3005.0,0.17011755]
[1769570109245,3.70556268,3005.8,3005.0,0.17011755]
[1769570109444,0.1553748,3006.0,3005.0,0.17011755]
[1769570109645,3.70636789,3005.9,3005.0,0.17011755]
[1769570109845,3.70636789,3005.8,3005.0,0.17011755]
[1769570110145,0.1553748,3006.0,3005.0,0.17011755]
[1769570110448,3.70637899,3005.9,3005.2,0.15283207]
[1769570110640,0.1553748,3006.2,3005.2,0.15283207]
[1769570110839,0.1553748,3006.0,3005.2,0.15283207]
[1769570111543,0.1553748,3006.4,3005.2,0.15283207]
[1769570111853,3.86162667,3006.3,3005.2,0.15283207]
[1769570112145,3.86162667,3006.2,3005.2,0.15283207]
[1769570112346,3.70625187,3006.1,3005.2,0.15283207]
[1769570112556,3.70625187,3006.0,3005.2,0.15283207]
[1769570112740,0.1553748,3006.2,3005.2,0.15283207]
[1769570113039,3.70550091,3006.1,3005.2,0.15283207]
[1769570113239,0.1553748,3006.2,3005.2,0.15283207]
[1769570113448,3.70453429,3006.1,3005.2,0.15283207]
[1769570113650,0.1553748,3006.2,3005.2,0.15283207]
[1769570113854,3.70450679,3006.1,3005.2,0.15283207]
[1769570114048,0.1553748,3006.2,3005.2,0.15283207]
[1769570114248,3.85996605,3006.1,3005.2,0.15283207]
[1769570114552,0.1553748,3006.5,3005.2,0.15283207]
[1769570114743,3.7043476,3006.4,3005.2,0.15283207]
[1769570114946,0.1553748,3006.5,3005.2,0.15283207]
[1769570118550,0.1553748,3006.5,3005.3,0.15283207]
[1769570119340,0.15819295,3006.7,3005.4,0.15283207]
[1769570119747,0.15819295,3006.7,3005.6,0.15283207]
[1769570121657,0.00281815,3006.7,3005.9,0.15283207]
[1769570121856,0.00281815,3006.7,3006.1,0.15283207]
[1769570124054,0.1553748,3006.9,3006.1,0.15283207]
[1769570125159,0.158406,3006.9,3006.1,0.15283207]
[1769570126361,0.158406,3006.9,3006.2,1.953]
[1769570126657,0.158406,3006.9,3006.2,2.08812764]
[1769570127049,0.158406,3006.9,3005.9,0.13512764]
[1769570127258,0.158406,3006.9,3005.6,0.13512764]
[1769570127453,0.158406,3006.9,3005.3,1.953]
[1769570127654,0.13702001,3006.7,3005.3,1.953]
[1769570128157,0.13702001,3006.7,3005.3,2.08812764]
[1769570128560,0.13702001,3006.7,3005.4,0.13512764]
[1769570134055,0.14005121,3006.9,3005.7,0.13512764]
[1769570139568,0.14005121,3006.9,3006.0,0.13512764]
[1769570140669,0.14005121,3006.9,3006.2,0.13512764]
[1769570140963,0.14005121,3006.9,3006.1,1.86226498]
[1769570141470,0.14005121,3006.9,3005.9,4.07939262]
[1769570142065,0.14005121,3006.9,3006.0,0.13512764]
[1769570145568,0.14005121,3006.9,3005.9,4.03026498]
[1769570145767,0.14005121,3006.9,3006.0,0.13512764]
[1769570146675,0.0030312,3006.9,3006.0,0.13512764]
[1769570147674,3.68727088,3006.8,3006.0,0.13512764]
[1769570147872,3.68727088,3006.7,3006.0,0.13512764]
[1769570148073,0.14005121,3006.9,3006.0,0.13512764]
[1769570148268,3.68747485,3006.8,3006.0,0.13512764]
[1769570148467,3.68747485,3006.7,3006.0,0.13512764]
[1769570148677,0.14005121,3006.9,3006.0,0.13512764]
[1769570148875,0.13702001,3006.7,3006.0,0.13512764]
[1769570150478,0.13702001,3006.7,3005.8,0.13512764]
[1769570150676,0.13702001,3006.7,3006.0,2.499]
[1769570150977,0.13702001,3006.6,3006.0,2.499]
[1769570157579,0.13702001,3006.6,3005.8,3.46512764]
[1769570157580,0.13702001,3006.6,3005.8,0.13512764]
[1769570157780,0.13702001,3006.6,3005.7,1.86226498]
[1769570157781,0.13702001,3006.6,3005.7,1.953]
[1769570157980,0.13702001,3006.6,3005.7,2.08786187]
[1769570159386,0.14480771,3006.9,3006.0,0.13486187]
[1769570159685,3.67994604,3006.8,3006.0,0.13486187]
[1769570159884,3.67994604,3006.7,3006.0,0.13486187]
[1769570160081,0.14480771,3006.9,3006.0,0.13486187]